[Event "Titled Tuesday Blitz November 08 Late 2022"]
[White "Dubov, Daniil"]
[Black "Nakamura, Hikaru"]
[WhiteFideId "24126055"]
[BlackFideId "2016192"]
[WhiteElo "2791"]
[BlackElo "2909"]
[Result "1/2-1/2"]
[Round "07"]
[TimeControl "180+1"]
[Date "2022.11.08"]
[WhiteClock "0:00:04"]
[BlackClock "0:00:29"]

1. e4 {[%clk 0:03:00]}  e5 {[%clk 0:02:50]} 2. Nf3 {[%clk 0:03:00]}  Nc6 {[%clk 0:02:50]} 3. Bc4 {[%clk 0:03:00]}  Nf6 {[%clk 0:02:49]} 4. d3 {[%clk 0:03:00]}  Bc5 {[%clk 0:02:49]} 5. Nc3 {[%clk 0:03:00]}  a6 {[%clk 0:02:42]} 6. h3 {[%clk 0:02:54]}  d6 {[%clk 0:02:40]} 7. a4 {[%clk 0:02:54]}  h6 {[%clk 0:02:40]} 8. Be3 {[%clk 0:02:53]}  Bxe3 {[%clk 0:02:38]} 9. fxe3 {[%clk 0:02:53]}  Be6 {[%clk 0:02:38]} 10. b3 {[%clk 0:02:51]}  O-O {[%clk 0:02:37]} 11. O-O {[%clk 0:02:51]}  Ne7 {[%clk 0:02:30]} 12. a5 {[%clk 0:02:47]}  Ng6 {[%clk 0:02:26]} 13. Qe1 {[%clk 0:02:46]}  Qe7 {[%clk 0:02:15]} 14. Qg3 {[%clk 0:02:44]}  Kh7 {[%clk 0:02:14]} 15. Rf2 {[%clk 0:02:37]}  c6 {[%clk 0:02:11]} 16. Bxe6 {[%clk 0:02:36]}  fxe6 {[%clk 0:02:09]} 17. Na4 {[%clk 0:02:24]}  Nd7 {[%clk 0:02:07]} 18. Raf1 {[%clk 0:02:21]}  Rf6 {[%clk 0:02:05]} 19. Nh4 {[%clk 0:02:17]}  Nxh4 {[%clk 0:02:00]} 20. Rxf6 {[%clk 0:02:12]}  gxf6 {[%clk 0:01:56]} 21. Qxh4 {[%clk 0:02:11]}  Rg8 {[%clk 0:01:57]} 22. Rf2 {[%clk 0:02:01]}  Qg7 {[%clk 0:01:43]} 23. Nb6 {[%clk 0:01:53]}  Nxb6 {[%clk 0:01:43]} 24. axb6 {[%clk 0:01:53]}  Rf8 {[%clk 0:01:43]} 25. Rf3 {[%clk 0:01:50]}  f5 {[%clk 0:01:39]} 26. exf5 {[%clk 0:01:42]}  exf5 {[%clk 0:01:40]} 27. Qf2 {[%clk 0:01:37]}  Qg6 {[%clk 0:01:36]} 28. Kh2 {[%clk 0:01:36]}  h5 {[%clk 0:01:35]} 29. Rg3 {[%clk 0:01:30]}  Qf6 {[%clk 0:01:26]} 30. Qf3 {[%clk 0:01:10]}  Kh6 {[%clk 0:01:19]} 31. Qf2 {[%clk 0:01:02]}  d5 {[%clk 0:01:09]} 32. Kg1 {[%clk 0:00:59]}  c5 {[%clk 0:00:53]} 33. h4 {[%clk 0:00:57]}  f4 {[%clk 0:00:51]} 34. Rg5 {[%clk 0:00:54]}  fxe3 {[%clk 0:00:47]} 35. Qxe3 {[%clk 0:00:51]}  Qf1+ {[%clk 0:00:47]} 36. Kh2 {[%clk 0:00:51]}  Qf4+ {[%clk 0:00:48]} 37. Qxf4 {[%clk 0:00:50]}  Rxf4 {[%clk 0:00:48]} 38. Rxe5 {[%clk 0:00:47]}  Rxh4+ {[%clk 0:00:46]} 39. Kg3 {[%clk 0:00:44]}  Rg4+ {[%clk 0:00:46]} 40. Kf3 {[%clk 0:00:44]}  c4 {[%clk 0:00:46]} 41. dxc4 {[%clk 0:00:18]}  dxc4 {[%clk 0:00:47]} 42. b4 {[%clk 0:00:16]}  c3 {[%clk 0:00:29]} 43. Re7 {[%clk 0:00:10]}  Rxb4 {[%clk 0:00:28]} 44. Rxb7 {[%clk 0:00:10]}  a5 {[%clk 0:00:28]} 45. Ke3 {[%clk 0:00:08]}  a4 {[%clk 0:00:28]} 46. Kd3 {[%clk 0:00:08]}  a3 {[%clk 0:00:29]} 47. Ra7 {[%clk 0:00:07]}  Rxb6 {[%clk 0:00:28]} 48. Rxa3 {[%clk 0:00:06]}  Rg6 {[%clk 0:00:29]} 49. Rxc3 {[%clk 0:00:05]}  Rxg2 {[%clk 0:00:29]} 50. Rc8 {[%clk 0:00:04]} 1/2-1/2


[Site "https://www.chess.com"]

[Event "Titled Tuesday Blitz November 08 Late 2022"]
[White "Dzierzak, Radoslaw"]
[Black "Annaberdiyev, Babageldi"]
[WhiteFideId "1161407"]
[BlackFideId "14000385"]
[WhiteElo "2111"]
[BlackElo "2332"]
[Result "1-0"]
[Round "07"]
[TimeControl "180+1"]
[Date "2022.11.09"]
[WhiteClock "0:00:21"]
[BlackClock "0:01:23"]

1. e4 {[%clk 0:03:00]}  e6 {[%clk 0:02:57]} 2. Nf3 {[%clk 0:03:00]}  d5 {[%clk 0:02:58]} 3. Nc3 {[%clk 0:03:01]}  d4 {[%clk 0:02:57]} 4. Ne2 {[%clk 0:03:01]}  c5 {[%clk 0:02:58]} 5. c3 {[%clk 0:02:59]}  Nc6 {[%clk 0:02:58]} 6. cxd4 {[%clk 0:02:57]}  cxd4 {[%clk 0:02:59]} 7. Qa4 {[%clk 0:02:57]}  Bd7 {[%clk 0:03:00]} 8. Nexd4 {[%clk 0:02:56]}  Nf6 {[%clk 0:03:00]} 9. Nxc6 {[%clk 0:02:52]}  bxc6 {[%clk 0:03:01]} 10. e5 {[%clk 0:02:42]}  Nd5 {[%clk 0:03:01]} 11. d4 {[%clk 0:02:31]}  Be7 {[%clk 0:03:01]} 12. Bd3 {[%clk 0:02:18]}  h6 {[%clk 0:02:57]} 13. O-O {[%clk 0:02:15]}  Qb6 {[%clk 0:02:50]} 14. Qa6 {[%clk 0:02:08]}  Rb8 {[%clk 0:02:49]} 15. Qxb6 {[%clk 0:02:08]}  axb6 {[%clk 0:02:49]} 16. a3 {[%clk 0:02:00]}  O-O {[%clk 0:02:48]} 17. Bd2 {[%clk 0:01:54]}  Rfc8 {[%clk 0:02:43]} 18. Rfc1 {[%clk 0:01:52]}  Kf8 {[%clk 0:02:42]} 19. Be4 {[%clk 0:01:40]}  Ke8 {[%clk 0:02:40]} 20. Bxd5 {[%clk 0:01:39]}  cxd5 {[%clk 0:02:40]} 21. Ne1 {[%clk 0:01:32]}  Rxc1 {[%clk 0:02:32]} 22. Rxc1 {[%clk 0:01:31]}  Rc8 {[%clk 0:02:33]} 23. Rxc8+ {[%clk 0:01:26]}  Bxc8 {[%clk 0:02:34]} 24. Nc2 {[%clk 0:01:26]}  Kd7 {[%clk 0:02:33]} 25. Bb4 {[%clk 0:01:25]}  Bg5 {[%clk 0:02:31]} 26. Kf1 {[%clk 0:01:15]}  Ba6+ {[%clk 0:02:30]} 27. Ke1 {[%clk 0:01:15]}  Bd3 {[%clk 0:02:27]} 28. Kd1 {[%clk 0:01:06]}  f6 {[%clk 0:02:19]} 29. Bd2 {[%clk 0:01:00]}  Bxd2 {[%clk 0:01:55]} 30. Kxd2 {[%clk 0:01:01]}  Bxc2 {[%clk 0:01:56]} 31. Kxc2 {[%clk 0:01:01]}  fxe5 {[%clk 0:01:57]} 32. dxe5 {[%clk 0:01:01]}  Kc6 {[%clk 0:01:53]} 33. Kc3 {[%clk 0:00:55]}  Kc5 {[%clk 0:01:52]} 34. b4+ {[%clk 0:00:54]}  Kb5 {[%clk 0:01:52]} 35. Kb3 {[%clk 0:00:54]}  Kc6 {[%clk 0:01:53]} 36. a4 {[%clk 0:00:51]}  g6 {[%clk 0:01:52]} 37. Kc3 {[%clk 0:00:51]}  Kc7 {[%clk 0:01:48]} 38. Kd4 {[%clk 0:00:40]}  Kc6 {[%clk 0:01:46]} 39. g4 {[%clk 0:00:38]}  Kd7 {[%clk 0:01:37]} 40. f4 {[%clk 0:00:34]}  Ke7 {[%clk 0:01:36]} 41. f5 {[%clk 0:00:23]}  exf5 {[%clk 0:01:23]} 42. gxf5 {[%clk 0:00:23]}  gxf5 {[%clk 0:01:23]} 43. Kxd5 {[%clk 0:00:23]}  Kd7 {[%clk 0:01:23]} 44. a5 {[%clk 0:00:20]}  bxa5 {[%clk 0:01:23]} 45. bxa5 {[%clk 0:00:21]} 1-0


[Site "https://www.chess.com"]

[Event "Titled Tuesday Blitz November 08 Late 2022"]
[White "Fernandez Guillen, Ernesto J."]
[Black "Martic, Ivan"]
[WhiteFideId "3512428"]
[BlackFideId "929301"]
[WhiteElo "2450"]
[BlackElo "2355"]
[Result "1-0"]
[Round "07"]
[TimeControl "180+1"]
[Date "2022.11.08"]
[WhiteClock "0:00:10"]
[BlackClock "0:00:11"]

1. e4 {[%clk 0:03:00]}  c6 {[%clk 0:03:00]} 2. d4 {[%clk 0:02:57]}  d5 {[%clk 0:03:00]} 3. e5 {[%clk 0:02:57]}  Bf5 {[%clk 0:02:58]} 4. c3 {[%clk 0:02:56]}  e6 {[%clk 0:02:58]} 5. Bd3 {[%clk 0:02:56]}  Bxd3 {[%clk 0:02:57]} 6. Qxd3 {[%clk 0:02:57]}  Qb6 {[%clk 0:02:56]} 7. Ne2 {[%clk 0:02:57]}  Ne7 {[%clk 0:02:50]} 8. O-O {[%clk 0:02:57]}  Qa6 {[%clk 0:02:49]} 9. Qd1 {[%clk 0:02:57]}  Nd7 {[%clk 0:02:49]} 10. Nd2 {[%clk 0:02:57]}  c5 {[%clk 0:02:48]} 11. Nf3 {[%clk 0:02:58]}  Nc6 {[%clk 0:02:47]} 12. Be3 {[%clk 0:02:57]}  Be7 {[%clk 0:02:44]} 13. a3 {[%clk 0:02:57]}  cxd4 {[%clk 0:02:40]} 14. cxd4 {[%clk 0:02:57]}  Na5 {[%clk 0:02:39]} 15. b4 {[%clk 0:02:55]}  Nc4 {[%clk 0:02:38]} 16. Nf4 {[%clk 0:02:52]}  O-O {[%clk 0:02:23]} 17. h4 {[%clk 0:02:48]}  Rac8 {[%clk 0:02:19]} 18. Ng5 {[%clk 0:02:11]}  h6 {[%clk 0:02:08]} 19. Qh5 {[%clk 0:02:12]}  Nxe3 {[%clk 0:02:04]} 20. fxe3 {[%clk 0:02:08]}  Rc2 {[%clk 0:01:25]} 21. Rf3 {[%clk 0:02:02]}  Qc4 {[%clk 0:01:14]} 22. Kh2 {[%clk 0:01:50]}  Rc1 {[%clk 0:01:06]} 23. Rxc1 {[%clk 0:01:40]}  Qxc1 {[%clk 0:01:07]} 24. Nxf7 {[%clk 0:01:15]}  Rxf7 {[%clk 0:01:02]} 25. Nxd5 {[%clk 0:01:15]}  Rxf3 {[%clk 0:00:55]} 26. Nxe7+ {[%clk 0:01:13]}  Kf8 {[%clk 0:00:49]} 27. Ng6+ {[%clk 0:01:11]}  Kf7 {[%clk 0:00:49]} 28. Nf4+ {[%clk 0:01:06]}  Kg8 {[%clk 0:00:41]} 29. Qxf3 {[%clk 0:01:04]}  Qxa3 {[%clk 0:00:40]} 30. Qxb7 {[%clk 0:00:31]}  Qxe3 {[%clk 0:00:39]} 31. Nxe6 {[%clk 0:00:32]}  Qe1 {[%clk 0:00:29]} 32. g3 {[%clk 0:00:10]}  Qf2+ {[%clk 0:00:23]} 33. Qg2 {[%clk 0:00:10]}  Qf7 {[%clk 0:00:18]} 34. Nf4 {[%clk 0:00:10]}  Qc4 {[%clk 0:00:17]} 35. Qd5+ {[%clk 0:00:10]}  Qxd5 {[%clk 0:00:16]} 36. Nxd5 {[%clk 0:00:11]}  Kf7 {[%clk 0:00:17]} 37. g4 {[%clk 0:00:10]}  g5 {[%clk 0:00:16]} 38. hxg5 {[%clk 0:00:10]}  hxg5 {[%clk 0:00:17]} 39. Kg3 {[%clk 0:00:10]}  Ke6 {[%clk 0:00:17]} 40. Nc7+ {[%clk 0:00:11]}  Ke7 {[%clk 0:00:16]} 41. Kf3 {[%clk 0:00:11]}  Nb6 {[%clk 0:00:16]} 42. Ke4 {[%clk 0:00:12]}  Kd7 {[%clk 0:00:16]} 43. Nd5 {[%clk 0:00:12]}  Nc4 {[%clk 0:00:17]} 44. Nf6+ {[%clk 0:00:12]}  Ke7 {[%clk 0:00:16]} 45. d5 {[%clk 0:00:10]}  Nd2+ {[%clk 0:00:15]} 46. Kf5 {[%clk 0:00:10]}  Nf3 {[%clk 0:00:13]} 47. d6+ {[%clk 0:00:10]}  Kd8 {[%clk 0:00:12]} 48. e6 {[%clk 0:00:09]}  Kc8 {[%clk 0:00:11]} 49. e7 {[%clk 0:00:09]}  Nd4+ {[%clk 0:00:12]} 50. Kxg5 {[%clk 0:00:10]}  Ne6+ {[%clk 0:00:11]} 51. Kg6 {[%clk 0:00:10]}  Nc7 {[%clk 0:00:10]} 52. dxc7 {[%clk 0:00:10]}  Kb7 {[%clk 0:00:11]} 53. e8=Q {[%clk 0:00:09]}  a5 {[%clk 0:00:12]} 54. c8=Q+ {[%clk 0:00:09]}  Ka7 {[%clk 0:00:11]} 55. Qc5+ {[%clk 0:00:10]}  Ka6 {[%clk 0:00:11]} 56. Qeb5# {[%clk 0:00:10]} 1-0


[Site "https://www.chess.com"]

[Event "Titled Tuesday Blitz November 08 Late 2022"]
[White "Floresvillar Gonzalez, Luis Migu"]
[Black "Storey, Charles H"]
[WhiteFideId "5100542"]
[BlackFideId "406686"]
[WhiteElo "2040"]
[BlackElo "2252"]
[Result "0-1"]
[Round "07"]
[TimeControl "180+1"]
[Date "2022.11.09"]
[WhiteClock "0:00:34"]
[BlackClock "0:01:00"]

1. d4 {[%clk 0:02:56]}  g6 {[%clk 0:02:59]} 2. c3 {[%clk 0:02:55]}  Bg7 {[%clk 0:03:00]} 3. Bg5 {[%clk 0:02:55]}  d6 {[%clk 0:03:00]} 4. Nd2 {[%clk 0:02:55]}  Nf6 {[%clk 0:02:59]} 5. h4 {[%clk 0:02:54]}  h6 {[%clk 0:02:59]} 6. Bf4 {[%clk 0:02:53]}  Nc6 {[%clk 0:02:54]} 7. Ngf3 {[%clk 0:02:53]}  Bg4 {[%clk 0:02:52]} 8. Qb3 {[%clk 0:02:49]}  Qc8 {[%clk 0:02:50]} 9. d5 {[%clk 0:02:46]}  Nb8 {[%clk 0:02:41]} 10. e4 {[%clk 0:02:44]}  O-O {[%clk 0:02:32]} 11. Be2 {[%clk 0:02:43]}  Na6 {[%clk 0:02:30]} 12. Qc2 {[%clk 0:02:36]}  Nc5 {[%clk 0:02:27]} 13. b4 {[%clk 0:02:35]}  Ncd7 {[%clk 0:02:20]} 14. Nb3 {[%clk 0:02:23]}  Nh5 {[%clk 0:02:15]} 15. Bh2 {[%clk 0:02:20]}  c6 {[%clk 0:02:15]} 16. O-O {[%clk 0:02:15]}  cxd5 {[%clk 0:02:13]} 17. exd5 {[%clk 0:02:14]}  Qxc3 {[%clk 0:02:13]} 18. Qxc3 {[%clk 0:02:07]}  Bxc3 {[%clk 0:02:14]} 19. Rac1 {[%clk 0:02:06]}  Bxb4 {[%clk 0:02:11]} 20. Rc7 {[%clk 0:02:05]}  b6 {[%clk 0:02:00]} 21. Nfd4 {[%clk 0:01:54]}  Bxe2 {[%clk 0:01:57]} 22. Nxe2 {[%clk 0:01:54]}  Nhf6 {[%clk 0:01:57]} 23. Bf4 {[%clk 0:01:51]}  Kg7 {[%clk 0:01:55]} 24. Rfc1 {[%clk 0:01:49]}  Bc5 {[%clk 0:01:52]} 25. Nxc5 {[%clk 0:01:47]}  bxc5 {[%clk 0:01:52]} 26. Rb1 {[%clk 0:01:45]}  Rfc8 {[%clk 0:01:50]} 27. Rbb7 {[%clk 0:01:39]}  Rxc7 {[%clk 0:01:48]} 28. Rxc7 {[%clk 0:01:38]}  a5 {[%clk 0:01:43]} 29. Nc3 {[%clk 0:01:38]}  Rb8 {[%clk 0:01:35]} 30. Ra7 {[%clk 0:01:35]}  Rb4 {[%clk 0:01:34]} 31. g3 {[%clk 0:01:31]}  Rc4 {[%clk 0:01:30]} 32. Bd2 {[%clk 0:01:27]}  Rd4 {[%clk 0:01:28]} 33. Be3 {[%clk 0:01:24]}  Rd3 {[%clk 0:01:28]} 34. Nb5 {[%clk 0:01:10]}  Rxd5 {[%clk 0:01:28]} 35. Rxa5 {[%clk 0:01:09]}  c4 {[%clk 0:01:22]} 36. a4 {[%clk 0:01:07]}  c3 {[%clk 0:01:21]} 37. Ra7 {[%clk 0:01:05]}  c2 {[%clk 0:01:20]} 38. Rc7 {[%clk 0:01:02]}  Nc5 {[%clk 0:01:20]} 39. a5 {[%clk 0:00:55]}  Rd1+ {[%clk 0:01:18]} 40. Kg2 {[%clk 0:00:55]}  Nd5 {[%clk 0:01:17]} 41. Bd4+ {[%clk 0:00:37]}  Rxd4 {[%clk 0:01:04]} 42. Nxd4 {[%clk 0:00:34]}  c1=Q {[%clk 0:01:00]} 0-1


[Site "https://www.chess.com"]

[Event "Titled Tuesday Blitz November 08 Late 2022"]
[White "Gardezi, Arsal"]
[Black "D`Arruda, Ricardo D."]
[WhiteFideId "30949521"]
[BlackFideId "100692"]
[WhiteElo "1906"]
[BlackElo "2493"]
[Result "1-0"]
[Round "07"]
[TimeControl "180+1"]
[Date "2022.11.09"]
[WhiteClock "0:00:10"]
[BlackClock "0:01:25"]

1. e4 {[%clk 0:00:07]}  c5 {[%clk 0:02:57]} 2. Nf3 {[%clk 0:00:07]}  Nc6 {[%clk 0:02:57]} 3. d4 {[%clk 0:00:08]}  cxd4 {[%clk 0:02:57]} 4. Nxd4 {[%clk 0:00:09]}  e5 {[%clk 0:02:57]} 5. Nb5 {[%clk 0:00:09]}  a6 {[%clk 0:02:57]} 6. N5c3 {[%clk 0:00:08]}  Nf6 {[%clk 0:02:56]} 7. Bg5 {[%clk 0:00:08]}  Bb4 {[%clk 0:02:55]} 8. a3 {[%clk 0:00:07]}  Be7 {[%clk 0:02:50]} 9. Bxf6 {[%clk 0:00:07]}  Bxf6 {[%clk 0:02:49]} 10. Nd5 {[%clk 0:00:08]}  d6 {[%clk 0:02:49]} 11. Nbc3 {[%clk 0:00:08]}  Be6 {[%clk 0:02:47]} 12. Be2 {[%clk 0:00:09]}  O-O {[%clk 0:02:46]} 13. O-O {[%clk 0:00:08]}  Bg5 {[%clk 0:02:46]} 14. f4 {[%clk 0:00:09]}  exf4 {[%clk 0:02:45]} 15. Nxf4 {[%clk 0:00:10]}  Qb6+ {[%clk 0:02:44]} 16. Kh1 {[%clk 0:00:10]}  Qxb2 {[%clk 0:02:44]} 17. Ncd5 {[%clk 0:00:08]}  Qe5 {[%clk 0:02:28]} 18. Nd3 {[%clk 0:00:07]}  Qd4 {[%clk 0:02:25]} 19. N3f4 {[%clk 0:00:06]}  Qxd1 {[%clk 0:02:24]} 20. Raxd1 {[%clk 0:00:06]}  Bd8 {[%clk 0:02:22]} 21. c4 {[%clk 0:00:06]}  Ne7 {[%clk 0:02:17]} 22. Nxe6 {[%clk 0:00:06]}  fxe6 {[%clk 0:02:16]} 23. Nf4 {[%clk 0:00:07]}  Nc8 {[%clk 0:02:01]} 24. Nxe6 {[%clk 0:00:06]}  Rxf1+ {[%clk 0:02:02]} 25. Rxf1 {[%clk 0:00:07]}  Bf6 {[%clk 0:02:02]} 26. Nc7 {[%clk 0:00:06]}  Rb8 {[%clk 0:02:01]} 27. Nd5 {[%clk 0:00:07]}  Bd8 {[%clk 0:01:52]} 28. Bg4 {[%clk 0:00:06]}  Bf6 {[%clk 0:01:32]} 29. Be6+ {[%clk 0:00:05]}  Kf8 {[%clk 0:01:31]} 30. Nxf6 {[%clk 0:00:05]}  gxf6 {[%clk 0:01:32]} 31. Rxf6+ {[%clk 0:00:06]}  Ke7 {[%clk 0:01:32]} 32. Rh6 {[%clk 0:00:07]}  Nb6 {[%clk 0:01:31]} 33. Bd5 {[%clk 0:00:06]}  Rf8 {[%clk 0:01:30]} 34. h3 {[%clk 0:00:06]}  Nd7 {[%clk 0:01:29]} 35. Rxh7+ {[%clk 0:00:06]}  Kd8 {[%clk 0:01:29]} 36. Bxb7 {[%clk 0:00:06]}  Nc5 {[%clk 0:01:29]} 37. Bc6 {[%clk 0:00:06]}  Rf1+ {[%clk 0:01:28]} 38. Kh2 {[%clk 0:00:06]}  Ra1 {[%clk 0:01:29]} 39. a4 {[%clk 0:00:06]}  Nxa4 {[%clk 0:01:28]} 40. Rd7+ {[%clk 0:00:07]}  Kc8 {[%clk 0:01:28]} 41. Rxd6 {[%clk 0:00:07]}  Kc7 {[%clk 0:01:28]} 42. Rh6 {[%clk 0:00:07]}  Nc5 {[%clk 0:01:29]} 43. Bd5 {[%clk 0:00:08]}  a5 {[%clk 0:01:29]} 44. e5 {[%clk 0:00:08]}  Nd3 {[%clk 0:01:28]} 45. e6 {[%clk 0:00:09]}  Kd6 {[%clk 0:01:28]} 46. Rh7 {[%clk 0:00:08]}  Nc5 {[%clk 0:01:27]} 47. Rh8 {[%clk 0:00:08]}  a4 {[%clk 0:01:28]} 48. Rd8+ {[%clk 0:00:08]}  Ke7 {[%clk 0:01:27]} 49. Rc8 {[%clk 0:00:08]}  Kd6 {[%clk 0:01:28]} 50. Rc6+ {[%clk 0:00:08]}  Ke7 {[%clk 0:01:28]} 51. Rxc5 {[%clk 0:00:09]}  a3 {[%clk 0:01:28]} 52. Rc7+ {[%clk 0:00:09]}  Kd6 {[%clk 0:01:27]} 53. e7 {[%clk 0:00:10]}  Re1 {[%clk 0:01:25]} 54. Ra7 {[%clk 0:00:10]} 1-0


[Site "https://www.chess.com"]

[Event "Titled Tuesday Blitz November 08 Late 2022"]
[White "Girsh, Daniel"]
[Black "Korchmar, Vasiliy"]
[WhiteFideId "30949190"]
[BlackFideId "24131750"]
[WhiteElo "2075"]
[BlackElo "2370"]
[Result "0-1"]
[Round "07"]
[TimeControl "180+1"]
[Date "2022.11.09"]
[WhiteClock "0:00:09"]
[BlackClock "0:00:21"]

1. e4 {[%clk 0:03:00]}  c5 {[%clk 0:02:59]} 2. Nf3 {[%clk 0:03:00]}  d6 {[%clk 0:03:00]} 3. d4 {[%clk 0:03:01]}  cxd4 {[%clk 0:03:01]} 4. Nxd4 {[%clk 0:03:02]}  Nf6 {[%clk 0:03:01]} 5. Nc3 {[%clk 0:03:02]}  Nc6 {[%clk 0:03:02]} 6. f3 {[%clk 0:03:01]}  e5 {[%clk 0:03:00]} 7. Nb3 {[%clk 0:03:01]}  Be7 {[%clk 0:03:00]} 8. Be3 {[%clk 0:03:02]}  O-O {[%clk 0:03:00]} 9. Nd5 {[%clk 0:03:02]}  Be6 {[%clk 0:02:42]} 10. c4 {[%clk 0:03:01]}  b5 {[%clk 0:02:41]} 11. cxb5 {[%clk 0:02:56]}  Bxd5 {[%clk 0:02:37]} 12. exd5 {[%clk 0:02:54]}  Nb4 {[%clk 0:02:37]} 13. Bc4 {[%clk 0:02:40]}  Rc8 {[%clk 0:02:35]} 14. Qe2 {[%clk 0:02:24]}  Nfxd5 {[%clk 0:02:29]} 15. Bxd5 {[%clk 0:02:23]}  Nxd5 {[%clk 0:01:22]} 16. Bxa7 {[%clk 0:02:21]}  Nf4 {[%clk 0:01:12]} 17. Qd2 {[%clk 0:02:10]}  Bg5 {[%clk 0:01:02]} 18. Kf1 {[%clk 0:01:28]}  Qd7 {[%clk 0:01:02]} 19. Qa5 {[%clk 0:01:10]}  Rc2 {[%clk 0:00:55]} 20. Bf2 {[%clk 0:00:57]}  Qf5 {[%clk 0:00:48]} 21. Rd1 {[%clk 0:00:54]}  Nd3 {[%clk 0:00:34]} 22. Bg3 {[%clk 0:00:40]}  Nxb2 {[%clk 0:00:27]} 23. Rd5 {[%clk 0:00:27]}  Nc4 {[%clk 0:00:22]} 24. Qa4 {[%clk 0:00:16]}  Ne3+ {[%clk 0:00:22]} 25. Ke1 {[%clk 0:00:15]}  Nxg2+ {[%clk 0:00:21]} 26. Kd1 {[%clk 0:00:14]}  Ne3+ {[%clk 0:00:22]} 27. Ke1 {[%clk 0:00:15]}  Qxf3 {[%clk 0:00:22]} 28. Nd4 {[%clk 0:00:09]}  Qxh1# {[%clk 0:00:21]} 0-1


[Site "https://www.chess.com"]

[Event "Titled Tuesday Blitz November 08 Late 2022"]
[White "Goryachkina, Aleksandra"]
[Black "Arencibia Monduy, Antonio"]
[WhiteFideId "4147103"]
[BlackFideId "3507939"]
[WhiteElo "2484"]
[BlackElo "2463"]
[Result "1-0"]
[Round "07"]
[TimeControl "180+1"]
[Date "2022.11.09"]
[WhiteClock "0:00:04"]
[BlackClock "0:00:02"]

1. e4 {[%clk 0:02:59]}  c6 {[%clk 0:02:59]} 2. d4 {[%clk 0:02:52]}  d6 {[%clk 0:03:00]} 3. Nf3 {[%clk 0:02:49]}  Qc7 {[%clk 0:03:00]} 4. Bd3 {[%clk 0:02:47]}  e5 {[%clk 0:03:00]} 5. c3 {[%clk 0:02:48]}  Bg4 {[%clk 0:03:00]} 6. Nbd2 {[%clk 0:02:46]}  Nf6 {[%clk 0:03:01]} 7. h3 {[%clk 0:02:46]}  Bh5 {[%clk 0:03:01]} 8. Nf1 {[%clk 0:02:42]}  Nbd7 {[%clk 0:03:01]} 9. Ng3 {[%clk 0:02:42]}  Bg6 {[%clk 0:03:01]} 10. O-O {[%clk 0:02:41]}  Be7 {[%clk 0:03:01]} 11. Re1 {[%clk 0:02:39]}  O-O {[%clk 0:03:01]} 12. Bg5 {[%clk 0:02:31]}  h6 {[%clk 0:02:56]} 13. Bd2 {[%clk 0:02:29]}  Rfe8 {[%clk 0:02:51]} 14. Nh4 {[%clk 0:02:20]}  Bh7 {[%clk 0:02:48]} 15. Nhf5 {[%clk 0:02:18]}  Bf8 {[%clk 0:02:48]} 16. Qf3 {[%clk 0:02:16]}  Rad8 {[%clk 0:02:25]} 17. Rad1 {[%clk 0:02:15]}  d5 {[%clk 0:02:00]} 18. exd5 {[%clk 0:01:54]}  cxd5 {[%clk 0:02:01]} 19. Bb5 {[%clk 0:01:30]}  e4 {[%clk 0:01:59]} 20. Qe2 {[%clk 0:01:30]}  a6 {[%clk 0:01:52]} 21. Ba4 {[%clk 0:01:25]}  b5 {[%clk 0:01:53]} 22. Bb3 {[%clk 0:01:24]}  Nb6 {[%clk 0:01:52]} 23. Bc1 {[%clk 0:01:14]}  Nc4 {[%clk 0:01:40]} 24. a4 {[%clk 0:01:04]}  Qd7 {[%clk 0:01:40]} 25. Ne3 {[%clk 0:01:00]}  Nxe3 {[%clk 0:01:24]} 26. Bxe3 {[%clk 0:00:58]}  bxa4 {[%clk 0:01:23]} 27. Bc2 {[%clk 0:00:58]}  Rb8 {[%clk 0:01:21]} 28. Qxa6 {[%clk 0:00:54]}  Re6 {[%clk 0:00:51]} 29. Qxa4 {[%clk 0:00:49]}  Qxa4 {[%clk 0:00:50]} 30. Bxa4 {[%clk 0:00:49]}  Rxb2 {[%clk 0:00:51]} 31. Rb1 {[%clk 0:00:44]}  Reb6 {[%clk 0:00:50]} 32. Rxb2 {[%clk 0:00:39]}  Rxb2 {[%clk 0:00:51]} 33. Rc1 {[%clk 0:00:38]}  Bd6 {[%clk 0:00:47]} 34. Nf1 {[%clk 0:00:36]}  Bf5 {[%clk 0:00:39]} 35. Nd2 {[%clk 0:00:34]}  Be6 {[%clk 0:00:31]} 36. Rb1 {[%clk 0:00:26]}  Ra2 {[%clk 0:00:30]} 37. Bb3 {[%clk 0:00:26]}  Ra3 {[%clk 0:00:30]} 38. c4 {[%clk 0:00:20]}  dxc4 {[%clk 0:00:29]} 39. Bxc4 {[%clk 0:00:21]}  Bxc4 {[%clk 0:00:17]} 40. Nxc4 {[%clk 0:00:21]}  Ra6 {[%clk 0:00:15]} 41. Nd2 {[%clk 0:00:17]}  Nd5 {[%clk 0:00:15]} 42. Nxe4 {[%clk 0:00:16]}  Nxe3 {[%clk 0:00:15]} 43. fxe3 {[%clk 0:00:16]}  Be7 {[%clk 0:00:13]} 44. Kf2 {[%clk 0:00:15]}  f5 {[%clk 0:00:13]} 45. Nc3 {[%clk 0:00:14]}  Rc6 {[%clk 0:00:12]} 46. Nd5 {[%clk 0:00:14]}  Bh4+ {[%clk 0:00:12]} 47. Kf3 {[%clk 0:00:14]}  Bg5 {[%clk 0:00:11]} 48. Nf4 {[%clk 0:00:12]}  Rc2 {[%clk 0:00:10]} 49. g3 {[%clk 0:00:09]}  Bf6 {[%clk 0:00:09]} 50. g4 {[%clk 0:00:08]}  fxg4+ {[%clk 0:00:09]} 51. hxg4 {[%clk 0:00:08]}  Bg5 {[%clk 0:00:09]} 52. d5 {[%clk 0:00:07]}  Rd2 {[%clk 0:00:09]} 53. Ke4 {[%clk 0:00:07]}  Bf6 {[%clk 0:00:06]} 54. Rb8+ {[%clk 0:00:06]}  Kf7 {[%clk 0:00:04]} 55. Rb7+ {[%clk 0:00:06]}  Ke8 {[%clk 0:00:05]} 56. Ne6 {[%clk 0:00:06]}  Rg2 {[%clk 0:00:04]} 57. Nxg7+ {[%clk 0:00:06]}  Kd8 {[%clk 0:00:03]} 58. Ne6+ {[%clk 0:00:06]}  Kc8 {[%clk 0:00:04]} 59. Rc7+ {[%clk 0:00:06]}  Kb8 {[%clk 0:00:01]} 60. Rf7 {[%clk 0:00:06]}  Bg5 {[%clk 0:00:02]} 61. Nxg5 {[%clk 0:00:05]}  Rxg4+ {[%clk 0:00:02]} 62. Rf4 {[%clk 0:00:03]}  Rxg5 {[%clk 0:00:02]} 63. Kd4 {[%clk 0:00:02]}  Kc7 {[%clk 0:00:03]} 64. e4 {[%clk 0:00:03]}  Kd7 {[%clk 0:00:03]} 65. e5 {[%clk 0:00:03]}  h5 {[%clk 0:00:03]} 66. Rf7+ {[%clk 0:00:03]}  Ke8 {[%clk 0:00:03]} 67. e6 {[%clk 0:00:03]}  h4 {[%clk 0:00:02]} 68. Rh7 {[%clk 0:00:04]}  Rg4+ {[%clk 0:00:02]} 69. Kc5 {[%clk 0:00:04]}  Kf8 {[%clk 0:00:02]} 70. Kd6 {[%clk 0:00:04]}  Kg8 {[%clk 0:00:02]} 71. Rh5 {[%clk 0:00:04]}  Re4 {[%clk 0:00:01]} 72. e7 {[%clk 0:00:04]}  Kf7 {[%clk 0:00:01]} 73. Rf5+ {[%clk 0:00:04]}  Kg6 {[%clk 0:00:02]} 74. Rf8 {[%clk 0:00:03]}  h3 {[%clk 0:00:02]} 75. e8=Q+ {[%clk 0:00:04]} 1-0


[Site "https://www.chess.com"]